[Event "Titled Tuesday Blitz October 11 Late 2022"]
[White "Barria Zuniga, Daniel"]
[Black "Gorodetzky, David"]
[WhiteFideId "3400816"]
[BlackFideId "2813416"]
[WhiteElo "2414"]
[BlackElo "2487"]
[Result "0-1"]
[Round "03"]
[TimeControl "180+1"]
[Date "2022.10.11"]
[WhiteClock "0:00:01"]
[BlackClock "0:00:02"]

1. d4 {[%clk 0:03:00]}  Nf6 {[%clk 0:02:50]} 2. c4 {[%clk 0:03:00]}  e6 {[%clk 0:02:49]} 3. Nf3 {[%clk 0:03:00]}  d5 {[%clk 0:02:47]} 4. Nc3 {[%clk 0:02:59]}  dxc4 {[%clk 0:02:46]} 5. e3 {[%clk 0:02:58]}  a6 {[%clk 0:02:44]} 6. Bxc4 {[%clk 0:02:58]}  b5 {[%clk 0:02:44]} 7. Bb3 {[%clk 0:02:58]}  c5 {[%clk 0:02:33]} 8. O-O {[%clk 0:02:58]}  Bb7 {[%clk 0:02:27]} 9. Re1 {[%clk 0:02:57]}  Nbd7 {[%clk 0:02:13]} 10. e4 {[%clk 0:02:55]}  cxd4 {[%clk 0:02:13]} 11. Nxd4 {[%clk 0:02:56]}  Nc5 {[%clk 0:02:09]} 12. e5 {[%clk 0:02:53]}  Nd5 {[%clk 0:02:01]} 13. Qg4 {[%clk 0:02:53]}  Nd3 {[%clk 0:01:47]} 14. Bg5 {[%clk 0:02:19]}  Qd7 {[%clk 0:01:34]} 15. Nxd5 {[%clk 0:02:17]}  Bxd5 {[%clk 0:01:28]} 16. Re3 {[%clk 0:02:13]}  h5 {[%clk 0:01:18]} 17. Qe2 {[%clk 0:01:57]}  Nb4 {[%clk 0:01:11]} 18. Rd1 {[%clk 0:01:52]}  Rc8 {[%clk 0:01:06]} 19. a3 {[%clk 0:01:46]}  Bxb3 {[%clk 0:01:05]} 20. Nxb3 {[%clk 0:01:44]}  Nd5 {[%clk 0:01:06]} 21. Red3 {[%clk 0:01:37]}  Be7 {[%clk 0:01:06]} 22. h4 {[%clk 0:01:15]}  Bxg5 {[%clk 0:01:01]} 23. hxg5 {[%clk 0:01:16]}  Qe7 {[%clk 0:01:01]} 24. Qd2 {[%clk 0:00:59]}  Rc4 {[%clk 0:00:52]} 25. Nd4 {[%clk 0:00:58]}  g6 {[%clk 0:00:41]} 26. Nf3 {[%clk 0:00:55]}  Rg4 {[%clk 0:00:38]} 27. Rxd5 {[%clk 0:00:28]}  exd5 {[%clk 0:00:37]} 28. Qxd5 {[%clk 0:00:29]}  O-O {[%clk 0:00:35]} 29. Qc6 {[%clk 0:00:29]}  Qe6 {[%clk 0:00:15]} 30. Rd6 {[%clk 0:00:27]}  Qf5 {[%clk 0:00:15]} 31. Rf6 {[%clk 0:00:27]}  Qe4 {[%clk 0:00:12]} 32. Qxe4 {[%clk 0:00:24]}  Rxe4 {[%clk 0:00:12]} 33. Rxa6 {[%clk 0:00:24]}  b4 {[%clk 0:00:12]} 34. Ra4 {[%clk 0:00:23]}  Rb8 {[%clk 0:00:11]} 35. Kh2 {[%clk 0:00:13]}  bxa3 {[%clk 0:00:09]} 36. Rxe4 {[%clk 0:00:10]}  axb2 {[%clk 0:00:10]} 37. Nd2 {[%clk 0:00:10]}  Rd8 {[%clk 0:00:10]} 38. Nb1 {[%clk 0:00:08]}  Rd1 {[%clk 0:00:11]} 39. e6 {[%clk 0:00:08]}  fxe6 {[%clk 0:00:09]} 40. Rxe6 {[%clk 0:00:08]}  Kg7 {[%clk 0:00:03]} 41. Re7+ {[%clk 0:00:08]}  Kf8 {[%clk 0:00:03]} 42. Rb7 {[%clk 0:00:08]}  Rxb1 {[%clk 0:00:03]} 43. Kg3 {[%clk 0:00:08]}  Kg8 {[%clk 0:00:03]} 44. f3 {[%clk 0:00:08]}  Kf8 {[%clk 0:00:04]} 45. Kf4 {[%clk 0:00:08]}  Ke8 {[%clk 0:00:04]} 46. Kg3 {[%clk 0:00:05]}  Kd8 {[%clk 0:00:04]} 47. Kf4 {[%clk 0:00:05]}  Kc8 {[%clk 0:00:05]} 48. Rb3 {[%clk 0:00:06]}  Kc7 {[%clk 0:00:06]} 49. Kg3 {[%clk 0:00:05]}  Kc6 {[%clk 0:00:06]} 50. f4 {[%clk 0:00:06]}  Kd5 {[%clk 0:00:07]} 51. Rb8 {[%clk 0:00:04]}  Ke4 {[%clk 0:00:07]} 52. Re8+ {[%clk 0:00:03]}  Kd4 {[%clk 0:00:06]} 53. Rd8+ {[%clk 0:00:03]}  Kc3 {[%clk 0:00:06]} 54. Rc8+ {[%clk 0:00:03]}  Kd4 {[%clk 0:00:06]} 55. Rd8+ {[%clk 0:00:03]}  Kc5 {[%clk 0:00:06]} 56. Rc8+ {[%clk 0:00:03]}  Kd6 {[%clk 0:00:06]} 57. Rb8 {[%clk 0:00:03]}  h4+ {[%clk 0:00:06]} 58. Kg4 {[%clk 0:00:02]}  h3 {[%clk 0:00:05]} 59. Kg3 {[%clk 0:00:01]}  Ke6 {[%clk 0:00:02]} 0-1


[Site "https://www.chess.com"]

[Event "Titled Tuesday Blitz October 11 Late 2022"]
[White "Bogaudinov, Rushan"]
[Black "Koziorowicz, Michal"]
[WhiteFideId "4129288"]
[BlackFideId "21809194"]
[WhiteElo "1945"]
[BlackElo "2220"]
[Result "0-1"]
[Round "03"]
[TimeControl "180+1"]
[Date "2022.10.12"]
[WhiteClock "0:00:23"]
[BlackClock "0:00:43"]

1. d4 {[%clk 0:02:58]}  e6 {[%clk 0:02:58]} 2. Nf3 {[%clk 0:02:58]}  Nf6 {[%clk 0:02:58]} 3. g3 {[%clk 0:02:58]}  c5 {[%clk 0:02:58]} 4. c3 {[%clk 0:02:58]}  d5 {[%clk 0:02:58]} 5. Bg2 {[%clk 0:02:57]}  Nc6 {[%clk 0:02:58]} 6. O-O {[%clk 0:02:57]}  Be7 {[%clk 0:02:57]} 7. dxc5 {[%clk 0:02:57]}  Bxc5 {[%clk 0:02:58]} 8. b4 {[%clk 0:02:58]}  Be7 {[%clk 0:02:58]} 9. a3 {[%clk 0:02:58]}  O-O {[%clk 0:02:58]} 10. Bb2 {[%clk 0:02:58]}  a6 {[%clk 0:02:49]} 11. Nbd2 {[%clk 0:02:54]}  e5 {[%clk 0:02:49]} 12. Re1 {[%clk 0:02:42]}  e4 {[%clk 0:02:46]} 13. Nd4 {[%clk 0:02:39]}  Nxd4 {[%clk 0:02:46]} 14. cxd4 {[%clk 0:02:39]}  Qb6 {[%clk 0:02:47]} 15. Nb3 {[%clk 0:02:31]}  Bd6 {[%clk 0:02:30]} 16. Nc5 {[%clk 0:02:21]}  a5 {[%clk 0:02:28]} 17. Qb3 {[%clk 0:02:18]}  Be6 {[%clk 0:02:25]} 18. e3 {[%clk 0:02:11]}  Rfd8 {[%clk 0:01:48]} 19. Rec1 {[%clk 0:02:07]}  Bd7 {[%clk 0:01:38]} 20. Bc3 {[%clk 0:01:50]}  a4 {[%clk 0:01:32]} 21. Qa2 {[%clk 0:01:45]}  Bb5 {[%clk 0:01:32]} 22. Bf1 {[%clk 0:01:43]}  Bxf1 {[%clk 0:01:32]} 23. Rxf1 {[%clk 0:01:42]}  Qb5 {[%clk 0:01:32]} 24. Rfe1 {[%clk 0:01:34]}  b6 {[%clk 0:01:32]} 25. Nb7 {[%clk 0:01:34]}  Rd7 {[%clk 0:01:28]} 26. Nxd6 {[%clk 0:01:30]}  Rxd6 {[%clk 0:01:29]} 27. Qe2 {[%clk 0:01:27]}  Qxe2 {[%clk 0:01:27]} 28. Rxe2 {[%clk 0:01:27]}  Rc8 {[%clk 0:01:27]} 29. Bb2 {[%clk 0:01:19]}  Rdc6 {[%clk 0:01:27]} 30. h3 {[%clk 0:01:07]}  Ne8 {[%clk 0:01:26]} 31. Kf1 {[%clk 0:01:06]}  Nd6 {[%clk 0:01:26]} 32. Ke1 {[%clk 0:01:04]}  Rc2 {[%clk 0:01:25]} 33. Rb1 {[%clk 0:00:56]}  Rxe2+ {[%clk 0:01:23]} 34. Kxe2 {[%clk 0:00:56]}  Rc2+ {[%clk 0:01:24]} 35. Ke1 {[%clk 0:00:53]}  Nc4 {[%clk 0:01:24]} 36. Bc1 {[%clk 0:00:53]}  b5 {[%clk 0:01:19]} 37. Ra1 {[%clk 0:00:50]}  f5 {[%clk 0:01:19]} 38. Kf1 {[%clk 0:00:48]}  Kf7 {[%clk 0:01:17]} 39. Ke1 {[%clk 0:00:47]}  g5 {[%clk 0:01:17]} 40. Kf1 {[%clk 0:00:47]}  Ke6 {[%clk 0:01:17]} 41. g4 {[%clk 0:00:45]}  Kf6 {[%clk 0:01:15]} 42. Kg1 {[%clk 0:00:43]}  Kg6 {[%clk 0:01:15]} 43. Kg2 {[%clk 0:00:42]}  h5 {[%clk 0:01:14]} 44. Kg3 {[%clk 0:00:40]}  Re2 {[%clk 0:00:56]} 45. Kg2 {[%clk 0:00:31]}  fxg4 {[%clk 0:00:54]} 46. hxg4 {[%clk 0:00:31]}  hxg4 {[%clk 0:00:54]} 47. Kg3 {[%clk 0:00:31]}  Kf5 {[%clk 0:00:55]} 48. Rb1 {[%clk 0:00:31]}  Re1 {[%clk 0:00:54]} 49. Ra1 {[%clk 0:00:31]}  Nd2 {[%clk 0:00:46]} 50. Bb2 {[%clk 0:00:26]}  Rxa1 {[%clk 0:00:42]} 51. Bxa1 {[%clk 0:00:26]}  Nc4 {[%clk 0:00:43]} 52. Kg2 {[%clk 0:00:19]}  Nxa3 {[%clk 0:00:43]} 53. Kf1 {[%clk 0:00:18]}  Nc4 {[%clk 0:00:42]} 54. Ke2 {[%clk 0:00:18]}  g3 {[%clk 0:00:42]} 55. fxg3 {[%clk 0:00:18]}  Kg4 {[%clk 0:00:43]} 56. Kf2 {[%clk 0:00:19]}  Kh3 {[%clk 0:00:43]} 57. Bc3 {[%clk 0:00:19]}  g4 {[%clk 0:00:41]} 58. Ba1 {[%clk 0:00:18]}  a3 {[%clk 0:00:41]} 59. Bc3 {[%clk 0:00:18]}  a2 {[%clk 0:00:41]} 60. Ba1 {[%clk 0:00:18]}  Na3 {[%clk 0:00:42]} 61. Bb2 {[%clk 0:00:19]}  Nc2 {[%clk 0:00:42]} 62. Bc3 {[%clk 0:00:19]}  Nxb4 {[%clk 0:00:42]} 63. Ba1 {[%clk 0:00:20]}  Nc2 {[%clk 0:00:42]} 64. Bb2 {[%clk 0:00:20]}  b4 {[%clk 0:00:42]} 65. Ke2 {[%clk 0:00:20]}  b3 {[%clk 0:00:42]} 66. Kd2 {[%clk 0:00:21]}  Kxg3 {[%clk 0:00:42]} 67. Kc3 {[%clk 0:00:21]}  a1=N {[%clk 0:00:39]} 68. Bxa1 {[%clk 0:00:20]}  Nxa1 {[%clk 0:00:40]} 69. Kb2 {[%clk 0:00:21]}  Nc2 {[%clk 0:00:40]} 70. Kxb3 {[%clk 0:00:21]}  Nxe3 {[%clk 0:00:41]} 71. Kb4 {[%clk 0:00:21]}  Kf3 {[%clk 0:00:41]} 72. Kc5 {[%clk 0:00:22]}  g3 {[%clk 0:00:42]} 73. Kd6 {[%clk 0:00:22]}  g2 {[%clk 0:00:43]} 74. Ke5 {[%clk 0:00:23]}  g1=Q {[%clk 0:00:44]} 75. Kf6 {[%clk 0:00:23]}  Qg4 {[%clk 0:00:43]} 76. Kf7 {[%clk 0:00:23]}  Qf5+ {[%clk 0:00:42]} 77. Kg7 {[%clk 0:00:23]}  Qe6 {[%clk 0:00:43]} 78. Kf8 {[%clk 0:00:23]}  Qd7 {[%clk 0:00:43]} 79. Kg8 {[%clk 0:00:23]}  Nf5 {[%clk 0:00:43]} 0-1


[Site "https://www.chess.com"]

[Event "Titled Tuesday Blitz October 11 Late 2022"]
[White "Bongo Akanga Ndjila, Barthelemy"]
[Black "Bortnyk, Mykola"]
[WhiteFideId "10609431"]
[BlackFideId "14120836"]
[WhiteElo "1768"]
[BlackElo "2582"]
[Result "0-1"]
[Round "03"]
[TimeControl "180+1"]
[Date "2022.10.12"]
[WhiteClock "0:00:10"]
[BlackClock "0:01:23"]

1. d4 {[%clk 0:03:00]}  b5 {[%clk 0:02:57]} 2. a4 {[%clk 0:02:59]}  b4 {[%clk 0:02:56]} 3. Nd2 {[%clk 0:02:59]}  Bb7 {[%clk 0:02:55]} 4. b3 {[%clk 0:02:58]}  g6 {[%clk 0:02:54]} 5. Ngf3 {[%clk 0:02:58]}  Bg7 {[%clk 0:02:55]} 6. Bb2 {[%clk 0:02:58]}  c5 {[%clk 0:02:55]} 7. Nc4 {[%clk 0:02:57]}  Nc6 {[%clk 0:02:52]} 8. e3 {[%clk 0:02:54]}  cxd4 {[%clk 0:02:48]} 9. exd4 {[%clk 0:02:49]}  d5 {[%clk 0:02:43]} 10. Nce5 {[%clk 0:02:48]}  a6 {[%clk 0:02:39]} 11. Nxc6 {[%clk 0:02:45]}  Bxc6 {[%clk 0:02:40]} 12. Bd3 {[%clk 0:02:43]}  Nf6 {[%clk 0:02:40]} 13. O-O {[%clk 0:02:43]}  O-O {[%clk 0:02:40]} 14. Re1 {[%clk 0:02:42]}  Bb7 {[%clk 0:02:36]} 15. Qe2 {[%clk 0:02:35]}  Ne4 {[%clk 0:02:34]} 16. Ne5 {[%clk 0:02:31]}  f6 {[%clk 0:02:28]} 17. Ng4 {[%clk 0:02:20]}  Qb6 {[%clk 0:02:26]} 18. f3 {[%clk 0:02:16]}  f5 {[%clk 0:02:24]} 19. Nf2 {[%clk 0:02:09]}  Bxd4 {[%clk 0:02:23]} 20. Bxd4 {[%clk 0:02:04]}  Qxd4 {[%clk 0:02:24]} 21. fxe4 {[%clk 0:02:03]}  fxe4 {[%clk 0:02:24]} 22. Qe3 {[%clk 0:01:51]}  Qxe3 {[%clk 0:02:18]} 23. Rxe3 {[%clk 0:01:50]}  exd3 {[%clk 0:02:17]} 24. Nxd3 {[%clk 0:01:50]}  Rac8 {[%clk 0:02:05]} 25. Rc1 {[%clk 0:01:44]}  Rc7 {[%clk 0:01:55]} 26. Nxb4 {[%clk 0:01:43]}  Rfc8 {[%clk 0:01:55]} 27. Re2 {[%clk 0:01:27]}  a5 {[%clk 0:01:54]} 28. Nd3 {[%clk 0:01:27]}  Ba6 {[%clk 0:01:53]} 29. Rd1 {[%clk 0:01:18]}  Rxc2 {[%clk 0:01:44]} 30. Rxc2 {[%clk 0:01:15]}  Rxc2 {[%clk 0:01:45]} 31. Ne5 {[%clk 0:01:12]}  e6 {[%clk 0:01:44]} 32. Re1 {[%clk 0:01:08]}  Rc3 {[%clk 0:01:40]} 33. Ng4 {[%clk 0:01:07]}  Kf7 {[%clk 0:01:39]} 34. Nh6+ {[%clk 0:01:03]}  Ke7 {[%clk 0:01:38]} 35. Rb1 {[%clk 0:00:58]}  Bd3 {[%clk 0:01:35]} 36. Rb2 {[%clk 0:00:58]}  Rc1+ {[%clk 0:01:35]} 37. Kf2 {[%clk 0:00:57]}  Rc2+ {[%clk 0:01:36]} 38. Rxc2 {[%clk 0:00:55]}  Bxc2 {[%clk 0:01:37]} 39. Ng4 {[%clk 0:00:40]}  Bxb3 {[%clk 0:01:37]} 40. Ke3 {[%clk 0:00:38]}  Bxa4 {[%clk 0:01:36]} 41. Kd4 {[%clk 0:00:38]}  Bb5 {[%clk 0:01:34]} 42. Kc5 {[%clk 0:00:36]}  a4 {[%clk 0:01:30]} 43. Kb4 {[%clk 0:00:36]}  d4 {[%clk 0:01:27]} 44. Ne5 {[%clk 0:00:33]}  Kd6 {[%clk 0:01:26]} 45. Nf3 {[%clk 0:00:27]}  Kd5 {[%clk 0:01:26]} 46. Nd2 {[%clk 0:00:26]}  Be8 {[%clk 0:01:22]} 47. g3 {[%clk 0:00:21]}  e5 {[%clk 0:01:23]} 48. Nf1 {[%clk 0:00:16]}  e4 {[%clk 0:01:23]} 49. h4 {[%clk 0:00:10]}  e3 {[%clk 0:01:23]} 0-1


[Site "https://www.chess.com"]

[Event "Titled Tuesday Blitz October 11 Late 2022"]
[White "Bortnyk, Olexandr"]
[Black "Dardha, Daniel"]
[WhiteFideId "14120828"]
[BlackFideId "240990"]
[WhiteElo "2723"]
[BlackElo "2528"]
[Result "1-0"]
[Round "03"]
[TimeControl "180+1"]
[Date "2022.10.11"]
[WhiteClock "0:00:04"]
[BlackClock "0:00:02"]

1. e4 {[%clk 0:03:00]}  e5 {[%clk 0:02:59]} 2. Nf3 {[%clk 0:03:00]}  Nc6 {[%clk 0:03:00]} 3. Bb5 {[%clk 0:03:00]}  Nf6 {[%clk 0:03:00]} 4. Qe2 {[%clk 0:03:00]}  Bd6 {[%clk 0:03:00]} 5. c3 {[%clk 0:03:00]}  O-O {[%clk 0:02:59]} 6. d3 {[%clk 0:03:00]}  h6 {[%clk 0:02:58]} 7. Nbd2 {[%clk 0:02:59]}  Re8 {[%clk 0:02:57]} 8. Nc4 {[%clk 0:02:57]}  a6 {[%clk 0:02:45]} 9. Nxd6 {[%clk 0:02:57]}  cxd6 {[%clk 0:02:46]} 10. Ba4 {[%clk 0:02:57]}  d5 {[%clk 0:02:45]} 11. O-O {[%clk 0:02:53]}  d6 {[%clk 0:02:39]} 12. h3 {[%clk 0:02:53]}  Be6 {[%clk 0:02:37]} 13. Rd1 {[%clk 0:02:51]}  b5 {[%clk 0:02:33]} 14. Bc2 {[%clk 0:02:50]}  Qc7 {[%clk 0:02:32]} 15. Be3 {[%clk 0:02:46]}  dxe4 {[%clk 0:02:30]} 16. dxe4 {[%clk 0:02:46]}  d5 {[%clk 0:02:31]} 17. exd5 {[%clk 0:02:44]}  Nxd5 {[%clk 0:02:30]} 18. Rxd5 {[%clk 0:02:09]}  Bxd5 {[%clk 0:02:31]} 19. Qd3 {[%clk 0:02:10]}  e4 {[%clk 0:02:27]} 20. Qxd5 {[%clk 0:02:10]}  exf3 {[%clk 0:02:21]} 21. Qf5 {[%clk 0:02:11]}  g6 {[%clk 0:02:16]} 22. Qxf3 {[%clk 0:02:11]}  Ne5 {[%clk 0:02:01]} 23. Qf4 {[%clk 0:02:08]}  h5 {[%clk 0:01:55]} 24. Bd4 {[%clk 0:01:35]}  Rad8 {[%clk 0:01:47]} 25. Kh1 {[%clk 0:01:09]}  Qd6 {[%clk 0:01:36]} 26. Bb3 {[%clk 0:01:03]}  Nc4 {[%clk 0:01:16]} 27. Qh6 {[%clk 0:00:59]}  f6 {[%clk 0:00:42]} 28. Qxg6+ {[%clk 0:00:55]}  Kf8 {[%clk 0:00:43]} 29. Bxf6 {[%clk 0:00:40]}  Rd7 {[%clk 0:00:38]} 30. Bxc4 {[%clk 0:00:25]}  bxc4 {[%clk 0:00:38]} 31. Bg7+ {[%clk 0:00:25]}  Kg8 {[%clk 0:00:29]} 32. Qxe8+ {[%clk 0:00:25]}  Kxg7 {[%clk 0:00:30]} 33. Qxh5 {[%clk 0:00:26]}  Qf4 {[%clk 0:00:29]} 34. Qg4+ {[%clk 0:00:17]}  Qxg4 {[%clk 0:00:29]} 35. hxg4 {[%clk 0:00:18]}  Rd2 {[%clk 0:00:29]} 36. b3 {[%clk 0:00:18]}  Rxf2 {[%clk 0:00:30]} 37. bxc4 {[%clk 0:00:18]}  Rc2 {[%clk 0:00:30]} 38. Rb1 {[%clk 0:00:13]}  Rxc3 {[%clk 0:00:30]} 39. Rb7+ {[%clk 0:00:13]}  Kg6 {[%clk 0:00:27]} 40. Rb6+ {[%clk 0:00:13]}  Kg5 {[%clk 0:00:27]} 41. Rxa6 {[%clk 0:00:14]}  Kxg4 {[%clk 0:00:27]} 42. Kh2 {[%clk 0:00:05]}  Rxc4 {[%clk 0:00:27]} 43. a4 {[%clk 0:00:05]}  Rc2 {[%clk 0:00:25]} 44. Ra8 {[%clk 0:00:05]}  Ra2 {[%clk 0:00:26]} 45. a5 {[%clk 0:00:05]}  Ra3 {[%clk 0:00:25]} 46. a6 {[%clk 0:00:05]}  Ra5 {[%clk 0:00:04]} 47. a7 {[%clk 0:00:05]}  Rxa7 {[%clk 0:00:02]} 48. Rxa7 {[%clk 0:00:04]} 1-0


[Site "https://www.chess.com"]

[Event "Titled Tuesday Blitz October 11 Late 2022"]
[White "Boyer, Mahel"]
[Black "Nozdrachev, Leonid"]
[WhiteFideId "45102422"]
[BlackFideId "24113433"]
[WhiteElo "2454"]
[BlackElo "2249"]
[Result "0-1"]
[Round "03"]
[TimeControl "180+1"]
[Date "2022.10.12"]
[WhiteClock "0:00:04"]
[BlackClock "0:00:26"]

1. e4 {[%clk 0:03:00]}  d6 {[%clk 0:02:55]} 2. d4 {[%clk 0:02:59]}  Nf6 {[%clk 0:02:56]} 3. Bd3 {[%clk 0:02:59]}  e5 {[%clk 0:02:53]} 4. c3 {[%clk 0:02:59]}  Be7 {[%clk 0:02:51]} 5. Ne2 {[%clk 0:02:59]}  O-O {[%clk 0:02:51]} 6. O-O {[%clk 0:03:00]}  a5 {[%clk 0:02:45]} 7. h3 {[%clk 0:02:57]}  a4 {[%clk 0:02:44]} 8. Be3 {[%clk 0:02:54]}  Re8 {[%clk 0:02:35]} 9. Nd2 {[%clk 0:02:45]}  a3 {[%clk 0:02:31]} 10. b4 {[%clk 0:02:43]}  Nbd7 {[%clk 0:02:18]} 11. Ng3 {[%clk 0:02:30]}  d5 {[%clk 0:02:13]} 12. f4 {[%clk 0:02:25]}  dxe4 {[%clk 0:02:10]} 13. Ndxe4 {[%clk 0:02:25]}  Nd5 {[%clk 0:02:08]} 14. Bd2 {[%clk 0:02:11]}  exf4 {[%clk 0:02:03]} 15. Bxf4 {[%clk 0:02:04]}  Nxf4 {[%clk 0:02:04]} 16. Rxf4 {[%clk 0:02:05]}  Nf6 {[%clk 0:01:58]} 17. Qf3 {[%clk 0:02:00]}  Be6 {[%clk 0:01:47]} 18. Rf1 {[%clk 0:01:54]}  Bxa2 {[%clk 0:01:43]} 19. Nf5 {[%clk 0:01:54]}  Bd5 {[%clk 0:01:36]} 20. Nxg7 {[%clk 0:01:50]}  Kxg7 {[%clk 0:01:20]} 21. Qg3+ {[%clk 0:01:46]}  Kh8 {[%clk 0:01:19]} 22. Rxf6 {[%clk 0:01:25]}  Bxe4 {[%clk 0:00:49]} 23. Rxf7 {[%clk 0:01:16]}  Rg8 {[%clk 0:00:49]} 24. Qe5+ {[%clk 0:01:15]}  Bf6 {[%clk 0:00:46]} 25. Bxe4 {[%clk 0:01:09]}  Rxg2+ {[%clk 0:00:41]} 26. Kxg2 {[%clk 0:00:58]}  Bxe5 {[%clk 0:00:42]} 27. Rxh7+ {[%clk 0:00:50]}  Kg8 {[%clk 0:00:41]} 28. dxe5 {[%clk 0:00:51]}  a2 {[%clk 0:00:36]} 29. Rff7 {[%clk 0:00:16]}  Qg5+ {[%clk 0:00:33]} 30. Kf2 {[%clk 0:00:03]}  a1=Q {[%clk 0:00:31]} 31. Bd5 {[%clk 0:00:03]}  Qag1+ {[%clk 0:00:28]} 32. Ke2 {[%clk 0:00:04]}  Q5e3# {[%clk 0:00:26]} 0-1


[Site "https://www.chess.com"]

[Event "Titled Tuesday Blitz October 11 Late 2022"]
[White "Cabarkapa, Novak"]
[Black "Sarana, Alexey"]
[WhiteFideId "943746"]
[BlackFideId "24133795"]
[WhiteElo "2390"]
[BlackElo "2689"]
[Result "0-1"]
[Round "03"]
[TimeControl "180+1"]
[Date "2022.10.11"]
[WhiteClock "0:00:06"]
[BlackClock "0:00:09"]

1. e4 {[%clk 0:03:00]}  c5 {[%clk 0:03:00]} 2. a3 {[%clk 0:03:01]}  Nc6 {[%clk 0:02:58]} 3. b4 {[%clk 0:03:00]}  Nf6 {[%clk 0:02:59]} 4. b5 {[%clk 0:02:59]}  Nd4 {[%clk 0:02:58]} 5. c3 {[%clk 0:02:59]}  Ne6 {[%clk 0:02:58]} 6. e5 {[%clk 0:03:00]}  Nd5 {[%clk 0:02:59]} 7. Qb3 {[%clk 0:03:00]}  Ndc7 {[%clk 0:02:53]} 8. Nf3 {[%clk 0:02:56]}  d6 {[%clk 0:02:52]} 9. Bc4 {[%clk 0:02:51]}  d5 {[%clk 0:02:38]} 10. Bf1 {[%clk 0:02:48]}  c4 {[%clk 0:02:34]} 11. Qb4 {[%clk 0:02:34]}  Qd7 {[%clk 0:02:02]} 12. d3 {[%clk 0:02:21]}  Qxb5 {[%clk 0:01:46]} 13. dxc4 {[%clk 0:02:19]}  dxc4 {[%clk 0:01:45]} 14. Bxc4 {[%clk 0:02:18]}  Qc6 {[%clk 0:01:41]} 15. O-O {[%clk 0:02:13]}  a5 {[%clk 0:01:40]} 16. Qb3 {[%clk 0:02:11]}  b5 {[%clk 0:01:37]} 17. Bd3 {[%clk 0:02:04]}  Nc5 {[%clk 0:01:36]} 18. Qc2 {[%clk 0:01:57]}  Nxd3 {[%clk 0:01:36]} 19. Qxd3 {[%clk 0:01:58]}  e6 {[%clk 0:01:33]} 20. Bg5 {[%clk 0:01:53]}  Bb7 {[%clk 0:01:31]} 21. Rd1 {[%clk 0:01:53]}  Qd5 {[%clk 0:01:14]} 22. Qe2 {[%clk 0:01:41]}  Qe4 {[%clk 0:01:14]} 23. Qxe4 {[%clk 0:01:19]}  Bxe4 {[%clk 0:01:13]} 24. Nbd2 {[%clk 0:01:07]}  Bd5 {[%clk 0:01:14]} 25. Rdc1 {[%clk 0:01:02]}  h6 {[%clk 0:01:12]} 26. Be3 {[%clk 0:01:01]}  Be7 {[%clk 0:00:48]} 27. c4 {[%clk 0:01:02]}  bxc4 {[%clk 0:00:48]} 28. Nxc4 {[%clk 0:01:02]}  Bxc4 {[%clk 0:00:48]} 29. Rxc4 {[%clk 0:01:02]}  Nd5 {[%clk 0:00:49]} 30. Bc5 {[%clk 0:01:00]}  Bxc5 {[%clk 0:00:43]} 31. Rxc5 {[%clk 0:01:00]}  Kd7 {[%clk 0:00:43]} 32. g3 {[%clk 0:00:32]}  Rhc8 {[%clk 0:00:42]} 33. Rac1 {[%clk 0:00:32]}  a4 {[%clk 0:00:33]} 34. Nd4 {[%clk 0:00:31]}  Rab8 {[%clk 0:00:25]} 35. Nb5 {[%clk 0:00:25]}  Rxc5 {[%clk 0:00:17]} 36. Rxc5 {[%clk 0:00:26]}  Rb6 {[%clk 0:00:17]} 37. Kg2 {[%clk 0:00:23]}  Rc6 {[%clk 0:00:16]} 38. Rxc6 {[%clk 0:00:13]}  Kxc6 {[%clk 0:00:17]} 39. Nd6 {[%clk 0:00:13]}  Nc3 {[%clk 0:00:17]} 40. Kf3 {[%clk 0:00:07]}  Nb5 {[%clk 0:00:16]} 41. Nc4 {[%clk 0:00:07]}  Kd5 {[%clk 0:00:15]} 42. Nb6+ {[%clk 0:00:07]}  Kxe5 {[%clk 0:00:15]} 43. Nxa4 {[%clk 0:00:07]}  Nxa3 {[%clk 0:00:15]} 44. Nc5 {[%clk 0:00:07]}  Nb5 {[%clk 0:00:15]} 45. Nd3+ {[%clk 0:00:08]}  Kd6 {[%clk 0:00:15]} 46. h4 {[%clk 0:00:08]}  Nc3 {[%clk 0:00:15]} 47. Nf4 {[%clk 0:00:07]}  Ke5 {[%clk 0:00:15]} 48. Nd3+ {[%clk 0:00:07]}  Kd4 {[%clk 0:00:15]} 49. Nf4 {[%clk 0:00:07]}  Nd5 {[%clk 0:00:15]} 50. Ne2+ {[%clk 0:00:05]}  Kd3 {[%clk 0:00:16]} 51. Nc1+ {[%clk 0:00:05]}  Kc2 {[%clk 0:00:15]} 52. Ne2 {[%clk 0:00:05]}  Kd2 {[%clk 0:00:14]} 53. Nd4 {[%clk 0:00:05]}  Kd3 {[%clk 0:00:14]} 54. Nc6 {[%clk 0:00:05]}  f6 {[%clk 0:00:11]} 55. Nd8 {[%clk 0:00:06]}  Nc7 {[%clk 0:00:11]} 56. h5 {[%clk 0:00:04]}  Kc4 {[%clk 0:00:10]} 57. Ke4 {[%clk 0:00:03]}  Kc5 {[%clk 0:00:10]} 58. Nb7+ {[%clk 0:00:02]}  Kc6 {[%clk 0:00:10]} 59. Na5+ {[%clk 0:00:02]}  Kb5 {[%clk 0:00:09]} 60. Nb3 {[%clk 0:00:03]}  Kc4 {[%clk 0:00:09]} 61. Na5+ {[%clk 0:00:04]}  Kc5 {[%clk 0:00:10]} 62. Nb3+ {[%clk 0:00:04]}  Kd6 {[%clk 0:00:10]} 63. Nd4 {[%clk 0:00:04]}  Nd5 {[%clk 0:00:10]} 64. Nb5+ {[%clk 0:00:03]}  Ke7 {[%clk 0:00:11]} 65. Nd4 {[%clk 0:00:03]}  Kf7 {[%clk 0:00:09]} 66. Nc6 {[%clk 0:00:03]}  Nb6 {[%clk 0:00:08]} 67. Nd8+ {[%clk 0:00:04]}  Ke7 {[%clk 0:00:09]} 68. Nc6+ {[%clk 0:00:05]}  Kd7 {[%clk 0:00:09]} 69. Nd4 {[%clk 0:00:05]}  Nc8 {[%clk 0:00:09]} 70. Nf3 {[%clk 0:00:05]}  Nd6+ {[%clk 0:00:10]} 71. Kf4 {[%clk 0:00:05]}  e5+ {[%clk 0:00:10]} 72. Kg4 {[%clk 0:00:05]}  Ke6 {[%clk 0:00:10]} 73. Nh4 {[%clk 0:00:05]}  f5+ {[%clk 0:00:10]} 74. Kf3 {[%clk 0:00:05]}  Kf6 {[%clk 0:00:11]} 75. g4 {[%clk 0:00:05]}  f4 {[%clk 0:00:11]} 76. Ng6 {[%clk 0:00:04]}  Ke6 {[%clk 0:00:08]} 77. Nh4 {[%clk 0:00:04]}  Kf7 {[%clk 0:00:06]} 78. Ng6 {[%clk 0:00:04]}  Kf6 {[%clk 0:00:07]} 79. Nh4 {[%clk 0:00:03]}  Nb5 {[%clk 0:00:05]} 80. Ng6 {[%clk 0:00:02]}  Nc3 {[%clk 0:00:05]} 81. Nf8 {[%clk 0:00:01]}  Nd5 {[%clk 0:00:03]} 82. Ke4 {[%clk 0:00:02]}  Nc3+ {[%clk 0:00:03]} 83. Kf3 {[%clk 0:00:02]}  Nb5 {[%clk 0:00:04]} 84. Ke4 {[%clk 0:00:03]}  Nd6+ {[%clk 0:00:04]} 85. Kd5 {[%clk 0:00:04]}  Nf7 {[%clk 0:00:05]} 86. Nd7+ {[%clk 0:00:04]}  Kg5 {[%clk 0:00:05]} 87. Nxe5 {[%clk 0:00:04]}  Nxe5 {[%clk 0:00:05]} 88. Kxe5 {[%clk 0:00:05]}  Kxg4 {[%clk 0:00:06]} 89. Ke4 {[%clk 0:00:06]}  f3 {[%clk 0:00:06]} 90. Ke3 {[%clk 0:00:06]}  Kxh5 {[%clk 0:00:07]} 91. Kxf3 {[%clk 0:00:06]}  Kg5 {[%clk 0:00:07]} 92. Kg3 {[%clk 0:00:07]}  Kf5 {[%clk 0:00:08]} 93. Kf3 {[%clk 0:00:07]}  g5 {[%clk 0:00:06]} 94. Kg3 {[%clk 0:00:08]}  h5 {[%clk 0:00:07]} 95. Kf3 {[%clk 0:00:09]}  Ke5 {[%clk 0:00:07]} 96. Ke3 {[%clk 0:00:09]}  g4 {[%clk 0:00:06]} 97. Ke2 {[%clk 0:00:07]}  Ke4 {[%clk 0:00:06]} 98. Kf1 {[%clk 0:00:06]}  Kf3 {[%clk 0:00:07]} 99. Kg1 {[%clk 0:00:07]}  h4 {[%clk 0:00:07]} 100. Kf1 {[%clk 0:00:08]}  h3 {[%clk 0:00:08]} 101. Kg1 {[%clk 0:00:08]}  Ke2 {[%clk 0:00:08]} 102. Kh2 {[%clk 0:00:06]}  Kxf2 {[%clk 0:00:08]} 103. Kh1 {[%clk 0:00:07]}  Kf3 {[%clk 0:00:08]} 104. Kh2 {[%clk 0:00:06]}  g3+ {[%clk 0:00:09]} 0-1


[Site "https://www.chess.com"]